[Event "ECo-C Extraliga 2023-24"]
[Site "Slovakia"]
[Date "2024.02.24"]
[Round "7.5"]
[White "Kusiak, Matej"]
[Black "Dobrotka, Martin"]
[Result "0-1"]
[ECO "B74"]
[WhiteElo "2250"]
[BlackElo "2166"]
[Annotator "TA"]
[PlyCount "158"]
[EventDate "2023.10.06"]
[EventType "team-tourn"]
[EventCountry "SVK"]
[SourceTitle "playchess.com"]
[Source "ChessBase"]
[SourceQuality "1"]
[TimeControl "40/5400+30:1800+30"]

{[%evp 38,158,-39,-37,2,0,52,25,30,17,20,-17,0,-21,82,0,0,-1,-6,-2,10,12,23,18,29,0,0,0,0,-11,0,0,-5,-228,-225,-228,-226,-244,-245,-235,-175,-253,-219,-195,-166,-222,-148,-146,-152,-161,-148,-155,-150,-151,-139,-146,-93,-101,-103,-144,-134,-154,-44,-71,-99,-174,-156,-142,-138,-139,-68,-157,-149,-147,-122,-446,-446,-437,-403,-4737,-4280,-4578,-2449,-2282,-1871,-1852,-1525,-12305,-5108,-29971,-29973,-29973,-29974,-29973,-29975,-29975,-29977,-29971,-29978,-29978,-29979,-29979,-29980,-29980,-29981,-29981,-29982,-29981,-29982,-29982,-29983,-29987,-29988,-29989,-29990,-29991,-29991,-29992,-29991,-29991,-29986,-29992,-4618]} 1. e4 {[%emt 0:00:03]} c5 {[%emt 0:00:32]} 2. Nf3 {[%emt 0:00:05]} Nc6 {[%emt 0:00:07]} 3. Nc3 {[%emt 0:00:08]} g6 {[%emt 0:00:35]} 4. d4 {[%emt 0:01:02]} cxd4 {[%emt 0:00:12]} 5. Nxd4 {[%emt 0:00:04]} Bg7 {[%emt 0:00:31]} 6. Be3 {[%emt 0:00:07]} Nf6 {[%emt 0:00:57]} 7. Nb3 {[%emt 0:06:47]} O-O {[%emt 0:02:04]} 8. Be2 {[%emt 0:00:28]} d6 {[%emt 0:21:44]} 9. O-O {[%emt 0:04:29]} Bd7 {[%emt 0:02:01]} 10. f4 {[%emt 0:01:10]} Qc8 {[%emt 0:02:51]} 11. h3 {[%emt 0:03:37] B74: Sizilianisch (Drachen-Variante).} Rb8 {[%emt 0:18:05]} 12. Bf3 {[%emt 0:05:02]} b5 {[%emt 0:06:00]} 13. Qd2 $146 {[%emt 0:09:24]} ({Predecessor:} 13. a3 a5 14. Nd4 Nxd4 15. Bxd4 Bc6 16. Nd5 Nxd5 17. exd5 Bb7 18. Bxg7 Kxg7 19. Qd4+ {0-1 Martin,S-Braak,D Lansing-chMI op 1985 (7)}) 13... a5 {[%emt 0:07:58]} 14. a4 {[%emt 0:08:33]} b4 {[%emt 0:07:43]} 15. Nd5 {[%emt 0:00:05]} Qd8 {[%emt 0:03:29]} 16. Rab1 {[%emt 0:10:41]} Ne8 {[%emt 0:09:10]} 17. Bf2 {[%emt 0:00:34]} e6 {[%emt 0:00:54]} 18. Ne3 {[%emt 0:00:06]} Ne7 {[%emt 0:01:17]} 19. Bh4 {[%emt 0:09:33]} Bxa4 {[%emt 0:03:32]} 20. Rfd1 {[%emt 0:01:33]} Bxb3 {[%emt 0:08:19]} (20... Qc7 $5) 21. cxb3 {[%emt 0:00:02]} Bf6 {[%emt 0:00:15]} (21... Bh6 $11) 22. Bf2 {[%emt 0:00:39]} d5 {[%emt 0:00:48]} 23. exd5 {[%emt 0:00:41]} exd5 {[%emt 0:00:37]} 24. Qe2 {[%emt 0:08:12]} Nc7 {[%emt 0:00:45]} 25. Ng4 {[%emt 0:00:14]} Nf5 {[%emt 0:00:48]} (25... Bg7 $11 {bleibt in der Remisbreite.}) 26. Nxf6+ {[%emt 0:05:27]} (26. Bxd5 $1 $16 Nxd5 27. Rxd5 (27. Nxf6+ Qxf6 28. Rxd5 Rfe8 $11)) 26... Qxf6 $11 {[%emt 0:00:03]} 27. Qe5 {[%emt 0:00:11]} Qxe5 {[%emt 0:00:43]} 28. fxe5 {[%emt 0:00:01]} Rfe8 {[%emt 0:00:52]} 29. Rbc1 {[%emt 0:00:28]} Ne6 {[%emt 0:01:24]} 30. Rxd5 {[%emt 0:00:54]} Nf4 {[%emt 0:00:28]} 31. Rd7 {[%emt 0:05:13]} Rxe5 {[%emt 0:00:26]} 32. Rcc7 {[%emt 0:00:13]} Rf8 {[%emt 0:00:35]} 33. Bc5 {[%emt 0:05:14]} Ne6 {[%emt 0:00:13]} 34. Bxf8 {[%emt 0:01:20]} Nxc7 {[%emt 0:00:02]} 35. Rd8 $2 {[%emt 0:01:12]} (35. Bxb4 $1 $11 {und Weiss muss sich keine Sorgen machen.} axb4 36. Rxc7) 35... Ne8 $19 {[%emt 0:00:18]} 36. Bc5 {[%emt 0:03:31]} Rxc5 {[%emt 0:00:21]} 37. Rxe8+ {[%emt 0:00:05]} Kg7 {[%emt 0:00:05]} 38. Rd8 {[%emt 0:05:16]} h5 {[%emt 0:00:14]} 39. g4 {[%emt 0:00:47]} (39. Be4 $142) 39... hxg4 {[%emt 0:01:23]} 40. hxg4 {[%emt 0:00:01]} Nh4 {[%emt 0:00:41]} 41. Bd5 {[%emt 0:30:17]} (41. Bd1 $142) 41... f6 {[%emt 0:01:40]} 42. Kf2 {[%emt 0:00:00]} Kh6 $1 {[%emt 0:00:29]} 43. Kg3 {[%emt 0:00:00]} Kg5 {[%emt 0:00:10]} 44. Bc4 {[%emt 0:00:00]} Re5 {[%emt 0:00:15]} 45. Rd3 {[%emt 0:00:00]} f5 {[%emt 0:04:20]} 46. gxf5 {[%emt 0:00:00]} gxf5 {[%emt 0:00:19]} ({Keinesfalls} 46... Nxf5+ 47. Kf3) (46... Rxf5 $142 47. Re3 Rf4 48. Re5+ Nf5+ 49. Kg2 a4) 47. Kf2 $17 {[%emt 0:00:00]} Ng6 {[%emt 0:04:53]} 48. Rg3+ {[%emt 0:00:00]} Kf6 {[%emt 0:00:06]} 49. Rd3 {[%emt 0:00:00]} Nf4 {[%emt 0:03:42]} (49... Re4 $1 $17 {Und ...Ne5 würde nun gewinnen.} 50. Rd5 Ne5) 50. Rd6+ {[%emt 0:00:00]} Kg5 {[%emt 0:03:25]} 51. Kf3 {[%emt 0:00:00]} (51. Rd7 $17) 51... Ng6 {[%emt 0:00:33]} 52. Bf7 {[%emt 0:00:00]} Nh4+ {[%emt 0:00:35]} 53. Kf2 {[%emt 0:00:00]} f4 {[%emt 0:01:38]} ({Günstiger ist} 53... Kf4 $17 {Zielt auf ...Nf3 ab.} 54. Rd3 Re7) 54. Ra6 {[%emt 0:00:00]} (54. Rc6 $1 $15) 54... Rc5 $1 $17 {[%emt 0:04:02]} 55. Bc4 {[%emt 0:00:00] [#]} Ng6 $1 {[%emt 0:00:19]} 56. Ra8 $2 {[%emt 0:00:00][%mdl 8192]} (56. Bd3 $17 Ne5 57. Be4) 56... Ne5 $19 {[%emt 0:01:39]} 57. Ke2 {[%emt 0:01:58]} Kf5 {[%emt 0:08:28]} 58. Bd3+ {[%emt 0:00:06]} (58. Bg8 $142 Rc2+ 59. Kd1) 58... Nxd3 $19 {[%emt 0:02:25]} 59. Kxd3 {[%emt 0:00:02]} Re5 {[%emt 0:00:31]} 60. Kd4 {[%emt 0:00:07]} Re4+ {[%emt 0:00:19]} 61. Kd3 {[%emt 0:09:04]} Re3+ {[%emt 0:00:07]} 62. Kc4 {[%emt 0:00:03]} f3 {[%emt 0:00:41]} 63. Rxa5+ {[%emt 0:00:06]} Kg4 {[%emt 0:01:03]} 64. Ra8 {[%emt 0:04:21]} f2 {[%emt 0:00:33]} 65. Rg8+ {[%emt 0:00:12]} Kf3 {[%emt 0:00:17]} 66. Rf8+ {[%emt 0:00:09]} Ke2 {[%emt 0:00:06]} 67. Rxf2+ {[%emt 0:00:15]} Kxf2 {[%emt 0:00:01]} 68. Kxb4 {[%emt 0:00:10]} Kf3 {[%emt 0:00:42]} 69. Kc4 {[%emt 0:00:07]} Re2 {[%emt 0:00:32]} 70. b4 {[%emt 0:00:09]} Rxb2 {[%emt 0:00:37]} 71. b5 {[%emt 0:00:10]} Ke4 {[%emt 0:00:14]} 72. Kc5 {[%emt 0:00:04]} Ke5 {[%emt 0:00:05]} 73. Kc6 {[%emt 0:00:20]} Ke6 {[%emt 0:00:10]} 74. b6 {[%emt 0:00:23] [#]} Rc2+ $1 {[%emt 0:00:45]} 75. Kb7 {[%emt 0:00:18]} Kd7 {[%emt 0:00:04]} 76. Kb8 {[%emt 0:02:58]} Kc6 {[%emt 0:03:02]} 77. b7 {[%emt 0:00:05]} Kb6 {[%emt 0:00:22]} 78. Ka8 {[%emt 0:00:25]} Ra2+ {[%emt 0:00:09]} 79. Kb8 {[%emt 0:00:09]} Ra7 {[%emt 0:00:05]} 0-1

[Event "ECo-C Extraliga 2023-24"]
[Site "Slovakia"]
[Date "2024.02.24"]
[Round "7.5"]
[White "Karas, Marek"]
[Black "Zetocha, Claudiu Andrei"]
[Result "0-1"]
[ECO "A46"]
[WhiteElo "2244"]
[BlackElo "2277"]
[Annotator "ChessBase"]
[PlyCount "152"]
[EventDate "2023.10.06"]
[EventType "team-tourn"]
[EventCountry "SVK"]
[SourceTitle "playchess.com"]
[Source "ChessBase"]
[SourceQuality "1"]
[TimeControl "40/5400+30:1800+30"]

1. d4 {[%emt 0:00:06]} Nf6 {[%emt 0:00:10]} 2. Nf3 {[%emt 0:00:15]} e6 {[%emt 0:00:56]} 3. c4 {[%emt 0:00:23]} c5 {[%emt 0:01:49]} 4. g3 {[%emt 0:01:51]} cxd4 {[%emt 0:04:14]} 5. Nxd4 {[%emt 0:00:13]} a6 {[%emt 0:04:17]} 6. Bg2 {[%emt 0:00:29]} Qc7 {[%emt 0:03:17]} 7. Nd2 {[%emt 0:06:22]} Nc6 {[%emt 0:03:20]} 8. Nxc6 {[%emt 0:02:56]} bxc6 {[%emt 0:03:55]} 9. O-O {[%emt 0:00:20]} Rb8 {[%emt 0:04:47]} 10. Qc2 {[%emt 0:04:04]} c5 {[%emt 0:01:11]} 11. b3 {[%emt 0:06:00]} Bb7 {[%emt 0:13:50]} 12. Bb2 {[%emt 0:03:10]} Be7 {[%emt 0:03:25]} 13. Ne4 {[%emt 0:05:27]} Bxe4 {[%emt 0:06:30]} 14. Bxe4 {[%emt 0:00:19]} h6 {[%emt 0:00:51]} 15. Bf3 {[%emt 0:03:35]} O-O {[%emt 0:00:20]} 16. Rad1 {[%emt 0:04:40]} d6 {[%emt 0:05:50]} 17. Rd3 {[%emt 0:05:25]} Rfd8 {[%emt 0:01:27]} 18. Bc3 {[%emt 0:03:24]} Ne8 {[%emt 0:04:27]} 19. Qd2 {[%emt 0:01:31]} Rd7 {[%emt 0:04:25]} 20. e4 {[%emt 0:03:48]} Bg5 {[%emt 0:02:34]} 21. Qd1 {[%emt 0:01:08]} Rdd8 {[%emt 0:16:34]} 22. Qe1 {[%emt 0:07:46]} Qa7 {[%emt 0:03:15]} 23. Ba5 {[%emt 0:02:54]} Rdc8 {[%emt 0:01:50]} 24. e5 {[%emt 0:01:45]} dxe5 {[%emt 0:01:18]} 25. Qxe5 {[%emt 0:02:45]} Bd8 {[%emt 0:01:54]} 26. Bd2 {[%emt 0:01:41]} Bf6 {[%emt 0:01:03]} 27. Qe4 {[%emt 0:03:55]} Bd4 {[%emt 0:01:51]} 28. Qg4 {[%emt 0:04:11]} Nf6 {[%emt 0:01:15]} 29. Qh4 {[%emt 0:00:20]} Rd8 {[%emt 0:00:09]} 30. Kg2 {[%emt 0:01:33]} a5 {[%emt 0:00:09]} 31. Rd1 {[%emt 0:01:50]} Qb6 {[%emt 0:03:54]} 32. Be1 {[%emt 0:07:18]} e5 {[%emt 0:00:17]} 33. R3d2 {[%emt 0:01:53]} Qa6 {[%emt 0:00:47]} 34. Re2 {[%emt 0:02:42]} a4 {[%emt 0:00:15]} 35. Rb1 {[%emt 0:01:39]} axb3 {[%emt 0:00:15]} 36. axb3 {[%emt 0:00:26]} Qa3 {[%emt 0:00:09]} 37. Bd2 {[%emt 0:01:03]} Rxb3 {[%emt 0:00:30]} 38. Rxb3 {[%emt 0:00:12]} Qxb3 {[%emt 0:00:18]} 39. Bxh6 {[%emt 0:01:05]} Rd6 {[%emt 0:00:27]} 40. Qg5 {[%emt 0:01:48]} Ne8 {[%emt 0:00:34]} 41. Qe7 {[%emt 0:08:46]} Re6 {[%emt 0:05:54]} 42. Qd8 {[%emt 0:02:24]} gxh6 {[%emt 0:02:20]} 43. Bd5 {[%emt 0:03:19]} Qb6 {[%emt 0:02:46]} 44. Qh4 {[%emt 0:01:55]} Rf6 {[%emt 0:04:15]} 45. f4 {[%emt 0:00:59]} Qb1 {[%emt 0:01:48]} 46. Qg4+ {[%emt 0:02:08]} Kf8 {[%emt 0:02:15]} 47. Be4 {[%emt 0:02:04]} Qc1 {[%emt 0:04:28]} 48. Bd5 {[%emt 0:02:29]} exf4 {[%emt 0:06:24]} 49. Kh3 {[%emt 0:00:10]} f3 {[%emt 0:01:00]} 50. Bxf3 {[%emt 0:00:42]} Qf1+ {[%emt 0:00:27]} 51. Bg2 {[%emt 0:00:11]} Qf5 {[%emt 0:00:10]} 52. Bd5 {[%emt 0:00:55]} Qxg4+ {[%emt 0:00:20]} 53. Kxg4 {[%emt 0:00:02]} Rf2 {[%emt 0:00:10]} 54. Rxf2 {[%emt 0:00:19]} Bxf2 {[%emt 0:00:08]} 55. Kf3 {[%emt 0:00:27]} Bd4 {[%emt 0:00:09]} 56. h4 {[%emt 0:00:19]} Ke7 {[%emt 0:00:43]} 57. g4 {[%emt 0:00:11]} Bf6 {[%emt 0:00:59]} 58. Kg3 {[%emt 0:00:16]} Nc7 {[%emt 0:00:08]} 59. Be4 {[%emt 0:00:20]} Bc3 {[%emt 0:00:48]} 60. g5 {[%emt 0:00:11]} Bd2 {[%emt 0:00:44]} 61. Kg4 {[%emt 0:00:51]} Ne6 {[%emt 0:01:12]} 62. gxh6 {[%emt 0:00:50]} Bxh6 {[%emt 0:00:07]} 63. Kf5 {[%emt 0:00:12]} Ng7+ {[%emt 0:00:37]} 64. Ke5 {[%emt 0:00:15]} Be3 {[%emt 0:00:08]} 65. Bf3 {[%emt 0:00:22]} Bd4+ {[%emt 0:01:33]} 66. Kf4 {[%emt 0:00:23]} Kf6 {[%emt 0:00:33]} 67. h5 {[%emt 0:00:26]} Ne6+ {[%emt 0:00:15]} 68. Kg4 {[%emt 0:00:16]} Be3 {[%emt 0:00:06]} 69. Bd5 {[%emt 0:00:30]} Ke5 {[%emt 0:00:20]} 70. Kf3 {[%emt 0:00:17]} Bh6 {[%emt 0:00:11]} 71. Kg4 {[%emt 0:00:08]} f5+ {[%emt 0:00:12]} 72. Kf3 {[%emt 0:00:08]} Ng5+ {[%emt 0:00:20]} 73. Kg3 {[%emt 0:00:09]} Ne4+ {[%emt 0:00:32]} 74. Kf3 {[%emt 0:00:10]} Kd4 {[%emt 0:00:11]} 75. Kg2 {[%emt 0:00:30]} Nd2 {[%emt 0:00:18]} 76. Be6 {[%emt 0:00:10]} Nxc4 {[%emt 0:00:08]} 0-1

[Event "ECo-C Extraliga 2023-24"]
[Site "Slovakia"]
[Date "2024.02.24"]
[Round "7.6"]
[White "Likavsky, Tomas"]
[Black "Motuz, Karol"]
[Result "1/2-1/2"]
[ECO "E04"]
[WhiteElo "2406"]
[BlackElo "2294"]
[Annotator "RC"]
[PlyCount "86"]
[EventDate "2023.10.06"]
[EventType "team-tourn"]
[EventCountry "SVK"]
[SourceTitle "playchess.com"]
[Source "ChessBase"]
[SourceQuality "1"]
[TimeControl "40/5400+30:1800+30"]

1. d4 {[%emt 0:00:04]} d5 {[%emt 0:00:09]} 2. c4 {[%emt 0:00:07]} e6 {[%emt 0:00:05]} 3. Nf3 {[%emt 0:00:06]} Nf6 {[%emt 0:00:25]} 4. g3 {[%emt 0:00:08]} dxc4 {[%emt 0:00:47]} 5. Bg2 {[%emt 0:00:21]} a6 {[%emt 0:00:40]} 6. Ne5 {[%emt 0:00:32]} Bb4+ {[%emt 0:00:50]} 7. Nc3 {[%emt 0:00:10]} Nd5 {[%emt 0:01:03]} 8. Bd2 {[%emt 0:00:11]} b5 {[%emt 0:05:31]} 9. O-O {[%emt 0:03:23]} Bxc3 {[%emt 0:05:24]} 10. bxc3 {[%emt 0:00:07]} Bb7 {[%emt 0:04:33]} 11. e4 {[%emt 0:02:55]} Nf6 {[%emt 0:01:19]} 12. Qb1 {[%emt 0:05:24]} Nbd7 {[%emt 0:16:18]} 13. Nxc4 {[%emt 0:22:42]} Bxe4 {[%emt 0:01:45]} 14. Bxe4 {[%emt 0:00:07]} Nxe4 {[%emt 0:00:07]} 15. Qxe4 {[%emt 0:00:08]} bxc4 {[%emt 0:00:13]} 16. Bg5 {[%emt 0:05:40]} Qc8 {[%emt 0:02:51]} 17. Qc6 {[%emt 0:03:09]} O-O {[%emt 0:01:56]} 18. Qxc4 {[%emt 0:03:36]} c5 {[%emt 0:01:47]} 19. Rfd1 {[%emt 0:03:37]} Re8 {[%emt 0:03:52]} 20. Be3 {[%emt 0:06:22]} cxd4 {[%emt 0:02:19]} 21. Qxd4 {[%emt 0:00:13]} Nf6 {[%emt 0:05:45]} 22. c4 {[%emt 0:01:26]} e5 {[%emt 0:03:00]} 23. Qh4 {[%emt 0:01:49]} Ng4 {[%emt 0:02:29]} 24. Rac1 {[%emt 0:00:14]} Nxe3 {[%emt 0:00:56]} 25. fxe3 {[%emt 0:00:06]} Qc5 {[%emt 0:02:33]} 26. Kf2 {[%emt 0:00:57]} Rac8 {[%emt 0:01:07]} 27. Qe4 {[%emt 0:02:44]} Red8 {[%emt 0:02:54]} 28. Ke2 {[%emt 0:03:29]} g6 {[%emt 0:03:06]} 29. g4 {[%emt 0:01:56]} Rxd1 {[%emt 0:02:21]} 30. Kxd1 {[%emt 0:00:04]} Rd8+ {[%emt 0:01:35]} 31. Ke2 {[%emt 0:00:07]} Qd6 {[%emt 0:02:34]} 32. Kf3 {[%emt 0:06:36]} f5 {[%emt 0:07:12]} 33. gxf5 {[%emt 0:09:53]} gxf5 {[%emt 0:00:25]} 34. Qc2 {[%emt 0:00:04]} e4+ {[%emt 0:10:54]} 35. Kg2 {[%emt 0:00:10]} Qd2+ {[%emt 0:04:36]} 36. Qxd2 {[%emt 0:00:08]} Rxd2+ {[%emt 0:00:00]} 37. Kg3 {[%emt 0:00:07]} Kf7 {[%emt 0:00:12]} 38. c5 {[%emt 0:04:02]} Ke7 {[%emt 0:00:59]} 39. Kf4 {[%emt 0:03:06]} Rxh2 {[%emt 0:01:06]} 40. Kxf5 {[%emt 0:00:07]} Rxa2 {[%emt 0:02:18]} 41. Kxe4 {[%emt 0:30:08]} Kd7 {[%emt 0:31:09]} 42. Ke5 {[%emt 0:04:30]} a5 {[%emt 0:00:00]} 43. e4 {[%emt 0:00:00]} a4 {[%emt 0:00:00]} 1/2-1/2

[Event "ECo-C Extraliga 2023-24"]
[Site "Slovakia"]
[Date "2024.02.24"]
[Round "7.6"]
[White "Varga, Zoltan"]
[Black "Lipka, Juraj"]
[Result "1/2-1/2"]
[ECO "E04"]
[WhiteElo "2366"]
[BlackElo "2356"]
[Annotator "RC"]
[PlyCount "33"]
[EventDate "2023.10.06"]
[EventType "team-tourn"]
[EventCountry "SVK"]
[SourceTitle "playchess.com"]
[Source "ChessBase"]
[SourceQuality "1"]
[TimeControl "40/5400+30:1800+30"]

1. d4 {[%emt 0:00:30]} d5 {[%emt 0:00:06]} 2. Nf3 {[%emt 0:00:04]} Nf6 {[%emt 0:00:14]} 3. g3 {[%emt 0:00:52]} e6 {[%emt 0:03:05]} 4. Bg2 {[%emt 0:00:14]} c5 {[%emt 0:00:11]} 5. O-O {[%emt 0:00:46]} Nc6 {[%emt 0:00:47]} 6. c4 {[%emt 0:00:32]} dxc4 {[%emt 0:00:32]} 7. dxc5 {[%emt 0:00:53]} Qxd1 {[%emt 0:01:04]} 8. Rxd1 {[%emt 0:00:42]} Bxc5 {[%emt 0:00:08]} 9. Nbd2 {[%emt 0:00:43]} c3 {[%emt 0:00:18]} 10. bxc3 {[%emt 0:00:26]} Bd7 {[%emt 0:01:23]} 11. Nb3 {[%emt 0:03:17]} Be7 {[%emt 0:01:38]} 12. Nfd4 {[%emt 0:01:11]} Nxd4 {[%emt 0:07:21]} 13. cxd4 {[%emt 0:07:41]} Nd5 {[%emt 0:00:19]} 14. Bb2 {[%emt 0:19:10]} f5 {[%emt 0:01:04]} 15. Rac1 {[%emt 0:01:49]} b6 {[%emt 0:12:27]} 16. Nd2 {[%emt 0:19:47]} O-O {[%emt 0:05:34]} 17. Nb1 {[%emt 0:10:50]} 1/2-1/2

[Event "ECo-C Extraliga 2023-24"]
[Site "Slovakia"]
[Date "2024.02.24"]
[Round "7.6"]
[White "Urhegyi, Marton"]
[Black "Cech, Pavel"]
[Result "1/2-1/2"]
[ECO "C00"]
[WhiteElo "2255"]
[BlackElo "2346"]
[Annotator "TA"]
[PlyCount "74"]
[EventDate "2023.10.06"]
[EventType "team-tourn"]
[EventCountry "SVK"]
[SourceTitle "playchess.com"]
[Source "ChessBase"]
[SourceQuality "1"]
[TimeControl "40/5400+30:1800+30"]

{[%evp 10,74,0,0,0,0,2,12,16,2,18,14,20,0,63,62,56,50,129,135,139,133,130,134,159,178,160,166,175,136,145,148,142,149,138,145,195,143,137,160,129,115,156,149,142,178,178,174,172,171,180,170,179,179,171,147,149,141,141,131,142,150,139,156,152,84,73]} 1. e4 {[%emt 0:00:03]} e6 {[%emt 0:00:09]} 2. d4 {[%emt 0:00:32]} d5 {[%emt 0:00:08]} 3. Bd3 {[%emt 0:02:01][%cal Bf1d3,Bd3e4,Be4f3][%mdl 32]} dxe4 {[%emt 0:04:47]} 4. Bxe4 {[%emt 0:00:09]} Nf6 {[%emt 0:00:06]} 5. Bf3 {[%emt 0:00:19]} c5 {[%emt 0:02:26]} 6. Ne2 {[%emt 0:01:26]} Nc6 {[%emt 0:03:28]} 7. Be3 {[%emt 0:00:31]} Be7 {[%emt 0:01:43]} 8. Nbc3 {[%emt 0:09:01]} cxd4 {[%emt 0:01:04] Die Stellung ist ausgeglichen.} 9. Nxd4 {[%emt 0:01:41]} Ne5 {[%emt 0:00:25]} 10. Qe2 {[%emt 0:06:49] Und 0-0-0 würde nun gewinnen.} Nxf3+ {[%emt 0:09:13]} 11. Qxf3 {[%emt 0:10:59]} a6 {[%emt 0:06:21]} (11... Bd7 $11) 12. O-O-O $14 {[%emt 0:07:05][%cal Od4f5]} Qc7 {[%emt 0:05:58]} 13. Rhe1 {[%emt 0:02:55][%cal Bh1e1,Be1e7,Be7c7][%mdl 32]} O-O {[%emt 0:08:52]} (13... Bd7 $1 $14) 14. Bf4 $16 {[%emt 0:04:15]} Qc4 {[%emt 0:03:40]} 15. Nf5 $1 {[%emt 0:03:36]} exf5 {[%emt 0:02:34]} 16. Rxe7 {[%emt 0:00:48]} Ne4 {[%emt 0:02:59] Schwarz hat schwache schwarze Felder} 17. Rc7 $36 {[%emt 0:25:46][%mdl 2048] Weiss hat starke Initiative.} Qe6 {[%emt 0:04:01]} 18. Nd5 {[%emt 0:00:38] Droht Qa3 und aus. Weiß hat aktiveres Spiel. Die schwarzen Türme stehen passiv.} Bd7 {[%emt 0:10:54] [#]} 19. Rxd7 $1 {[%emt 0:05:04][%mdl 512]} Qxd7 {[%emt 0:00:33] [#]} 20. Nf6+ $1 {[%emt 0:00:04][%mdl 512]} Nxf6 {[%emt 0:00:07]} 21. Rxd7 {[%emt 0:00:03]} Nxd7 {[%emt 0:00:06]} 22. Qxb7 {[%emt 0:00:11]} Rfe8 {[%emt 0:08:24]} (22... Nc5 $16 {ist eine bessere Verteidigung.} 23. Qb6 Rfc8) 23. Be3 {[%emt 0:05:40]} ({Schwächer ist} 23. Qxd7 Rad8 $17) (23. b4 $18 Nf6 24. f3) 23... Ne5 {[%emt 0:04:28] [#]} 24. b3 {[%emt 0:01:43] Es drohte Nc4} Ng4 {[%emt 0:03:23]} 25. Bd4 {[%emt 0:01:26]} Rad8 {[%emt 0:06:23]} 26. c3 {[%emt 0:01:12]} Re6 {[%emt 0:00:58]} 27. h3 {[%emt 0:01:35]} Nf6 {[%emt 0:00:31][%cal Bg4f6,Bf6d5,Bd5b4,Bb4c6,Bc6e5,Be5d3,Bd3e1][%mdl 32]} 28. Qf3 {[%emt 0:00:39]} g6 {[%emt 0:00:39]} 29. g4 {[%emt 0:01:28]} fxg4 {[%emt 0:00:06]} 30. hxg4 {[%emt 0:00:05]} Nd5 {[%emt 0:02:53]} 31. a4 {[%emt 0:00:41]} Nb4 {[%emt 0:01:41]} 32. Kb2 {[%emt 0:02:30]} Nc6 {[%emt 0:00:18]} 33. Be3 {[%emt 0:00:39]} Ne5 {[%emt 0:00:46]} 34. Qg3 {[%emt 0:01:00]} Nd3+ {[%emt 0:01:16]} 35. Ka3 {[%emt 0:00:44]} Ne1 {[%emt 0:00:14]} 36. Qc7 {[%emt 0:01:19]} Rde8 {[%emt 0:00:08]} 37. Kb2 {[%emt 0:00:54] Verhindert Nc2.} (37. Bc5 $142) 37... Nd3+ {[%emt 0:00:19] Gewichteter Fehlerwert: Weiß=0.09 (makellos) /Schwarz=0.11 (sehr präzise) .  Fehler:       	Weiß=2     	Schwarz=3     Ungenau:       	---       	Schwarz=1     OK:         	Weiß=13    	Schwarz=13    Bester:       	Weiß=3     	Schwarz=2     Stark:        	Weiß=1     	---        Brilliant:      	Weiß=1     	---} 1/2-1/2

[Event "ECo-C Extraliga 2023-24"]
[Site "Slovakia"]
[Date "2024.02.24"]
[Round "7.6"]
[White "Lanc, Alois"]
[Black "Skreko, Igor"]
[Result "0-1"]
[ECO "E76"]
[WhiteElo "2248"]
[BlackElo "2103"]
[Annotator "ChessBase"]
[PlyCount "120"]
[EventDate "2023.10.06"]
[EventType "team-tourn"]
[EventCountry "SVK"]
[SourceTitle "playchess.com"]
[Source "ChessBase"]
[SourceQuality "1"]
[TimeControl "40/5400+30:1800+30"]

1. d4 {[%emt 0:00:29]} Nf6 {[%emt 0:00:04]} 2. c4 {[%emt 0:00:58]} g6 {[%emt 0:02:17]} 3. Nc3 {[%emt 0:00:16]} Bg7 {[%emt 0:00:03]} 4. e4 {[%emt 0:00:59]} d6 {[%emt 0:00:03]} 5. f4 {[%emt 0:03:00]} O-O {[%emt 0:00:08]} 6. Nf3 {[%emt 0:00:16]} c5 {[%emt 0:00:03]} 7. dxc5 {[%emt 0:00:40]} Qa5 {[%emt 0:00:38]} 8. Bd3 {[%emt 0:01:17]} Qxc5 {[%emt 0:00:18]} 9. Qe2 {[%emt 0:00:13]} Nc6 {[%emt 0:02:46]} 10. Be3 {[%emt 0:04:34]} Qa5 {[%emt 0:00:46]} 11. O-O {[%emt 0:04:37]} Ng4 {[%emt 0:04:57]} 12. Bd2 {[%emt 0:07:03]} Nd4 {[%emt 0:07:21]} 13. Nxd4 {[%emt 0:07:23]} Bxd4+ {[%emt 0:00:18]} 14. Kh1 {[%emt 0:00:20]} Qc5 {[%emt 0:03:47]} 15. Nd5 {[%emt 0:04:41]} Re8 {[%emt 0:05:45]} 16. b4 {[%emt 0:07:09]} Qc6 {[%emt 0:00:42]} 17. c5 {[%emt 0:07:50]} Bd7 {[%emt 0:05:30]} 18. b5 {[%emt 0:05:14]} Qc8 {[%emt 0:02:20]} 19. c6 {[%emt 0:00:51]} bxc6 {[%emt 0:04:13]} 20. bxc6 {[%emt 0:00:09]} Qxc6 {[%emt 0:05:46]} 21. Rac1 {[%emt 0:03:34]} Bc5 {[%emt 0:01:34]} 22. Bc3 {[%emt 0:02:29]} Be6 {[%emt 0:09:28]} 23. Bb5 {[%emt 0:14:55]} Qb7 {[%emt 0:03:12]} 24. Bxe8 {[%emt 0:02:57]} Rxe8 {[%emt 0:00:22]} 25. f5 {[%emt 0:08:55]} Bxd5 {[%emt 0:01:48]} 26. Qxg4 {[%emt 0:01:41]} Bxe4 {[%emt 0:04:06]} 27. Rf4 {[%emt 0:02:07]} Be3 {[%emt 0:06:43]} 28. Rxe4 {[%emt 0:03:22]} Bxc1 {[%emt 0:00:23]} 29. Re1 {[%emt 0:01:37]} Bh6 {[%emt 0:03:48]} 30. Qh4 {[%emt 0:00:45]} Qc8 {[%emt 0:01:46]} 31. Qd4 {[%emt 0:04:01]} f6 {[%emt 0:01:57]} 32. fxg6 {[%emt 0:00:06]} hxg6 {[%emt 0:00:11]} 33. h3 {[%emt 0:00:39]} Qc6 {[%emt 0:02:28]} 34. Bb4 {[%emt 0:00:29]} Bf8 {[%emt 0:01:26]} 35. Qxa7 {[%emt 0:00:42]} Ra8 {[%emt 0:01:11]} 36. Qe3 {[%emt 0:00:17]} Qd5 {[%emt 0:01:40]} 37. a3 {[%emt 0:00:27]} Rc8 {[%emt 0:00:33]} 38. Qg3 {[%emt 0:01:24]} Kf7 {[%emt 0:02:12]} 39. Qh4 {[%emt 0:00:44]} e5 {[%emt 0:04:13]} 40. Qf2 {[%emt 0:00:41]} Rc4 {[%emt 0:02:18]} 41. Qe2 {[%emt 0:01:56]} Qc6 {[%emt 0:04:04]} 42. Rf1 {[%emt 0:03:06]} Rc2 {[%emt 0:04:13]} 43. Qg4 {[%emt 0:01:14]} Bh6 {[%emt 0:02:51]} 44. Rd1 {[%emt 0:03:12]} d5 {[%emt 0:06:18]} 45. h4 {[%emt 0:02:12]} Rc1 {[%emt 0:01:29]} 46. Rxc1 {[%emt 0:07:03]} Qxc1+ {[%emt 0:00:11]} 47. Kh2 {[%emt 0:00:06]} Qf4+ {[%emt 0:07:07]} 48. Qxf4 {[%emt 0:00:37]} Bxf4+ {[%emt 0:00:02]} 49. g3 {[%emt 0:00:08]} Bc1 {[%emt 0:02:17]} 50. a4 {[%emt 0:04:15]} d4 {[%emt 0:03:31]} 51. a5 {[%emt 0:00:07]} d3 {[%emt 0:00:08]} 52. a6 {[%emt 0:00:05]} Be3 {[%emt 0:00:12]} 53. g4 {[%emt 0:06:15]} Ba7 {[%emt 0:01:49]} 54. Kg3 {[%emt 0:02:31]} f5 {[%emt 0:01:51]} 55. g5 {[%emt 0:01:42]} e4 {[%emt 0:00:34]} 56. Kf4 {[%emt 0:00:24]} e3 {[%emt 0:00:22]} 57. Kf3 {[%emt 0:00:08]} f4 {[%emt 0:00:42]} 58. Bc3 {[%emt 0:02:13]} d2 {[%emt 0:01:24]} 59. Ke2 {[%emt 0:00:28]} f3+ {[%emt 0:00:18]} 60. Kd1 {[%emt 0:00:28]} f2 {[%emt 0:00:18]} 0-1